fUSD/lending_fUSD_20250403
["ID","MTS","AMOUNT","RATE_DAILY","PERIOD"]
[357075105,1743692601008,-500.0,0.00049315,120]
[357075106,1743692601052,-500.0,0.00049315,120]
[357075107,1743692601097,-500.0,0.00049315,120]
[357075108,1743692601139,-500.0,0.00049315,120]
[357075109,1743692601182,-500.0,0.00049315,120]
[357075110,1743692601227,-500.0,0.00049315,120]
[357075111,1743692601271,-500.0,0.00049315,120]
[357075112,1743692601316,-500.0,0.00049315,120]
[357075113,1743692601358,-500.0,0.00049315,120]
[357075114,1743692601402,-500.0,0.00049315,120]
[357075115,1743692601445,-500.0,0.00049315,120]
[357075116,1743692601491,-500.0,0.00049315,120]
[357075117,1743692601537,-548.45303482,0.00049315,120]
[357075118,1743692601582,-500.0,0.00049315,120]
[357075119,1743692601629,-500.0,0.00049315,120]
[357075120,1743692601671,-500.0,0.00049315,120]
[357075121,1743692601716,-559.93300578,0.00049315,120]
[357075122,1743692601758,-500.0,0.00049315,120]
[357075123,1743692601800,-504.66836777,0.00049315,120]
[357075124,1743692601842,-500.0,0.00049315,120]
[357075125,1743692601886,-500.0,0.00049315,120]
[357075126,1743692601930,-500.0,0.00049315,120]
[357075127,1743692601971,-500.0,0.00049315,120]
[357075128,1743692602014,-500.0,0.00049315,120]
[357075129,1743692602192,-500.0,0.00049315,120]
[357075130,1743692602234,-500.0,0.00049315,120]
[357075131,1743692602276,-500.0,0.00049315,120]
[357075132,1743692602316,-523.7687301,0.00049315,120]
[357075133,1743692602356,-501.40565561,0.00049315,120]
[357075134,1743692602398,-500.0,0.00049315,120]
[357075135,1743692602441,-500.0,0.00049315,120]
[357075136,1743692602486,-501.66667613,0.00049315,120]
[357075137,1743692602527,-500.0,0.00049315,120]
[357075138,1743692602573,-500.0,0.00049315,120]
[357075139,1743692602615,-500.0,0.00049315,120]
[357075140,1743692602658,-182.09403381,0.00049315,120]
[357075141,1743692602702,-500.0,0.00049315,120]
[357075142,1743692602744,-500.0,0.00049315,120]
[357075143,1743692602786,-500.0,0.00049315,120]
[357075144,1743692602829,-509.20239699,0.00049315,120]
[357075145,1743692602871,-519.91199287,0.00049315,120]
[357075146,1743692602913,-500.0,0.00049315,120]
[357075147,1743692602956,-500.0,0.00049315,120]
[357075148,1743692603003,-500.0,0.00049315,120]
[357075149,1743692603046,-500.0,0.00049315,120]
[357075150,1743692603093,-500.0,0.00049315,120]
[357075151,1743692603137,-500.0,0.00049315,120]
[357075152,1743692603182,-500.0,0.00049315,120]
[357075153,1743692603226,-500.0,0.00049315,120]
[357075154,1743692603271,-500.0,0.00049315,120]
[357075155,1743692603315,-500.0,0.00049315,120]
[357075156,1743692603360,-500.0,0.00049315,120]
[357075157,1743692603404,-500.0,0.00049315,60]
[357075158,1743692603450,-512.29,0.00049315,120]
[357075159,1743692603495,-500.0,0.00049315,120]
[357075160,1743692603536,-500.0,0.00049315,120]
[357075161,1743692603582,-500.0,0.00049315,120]
[357075162,1743692603624,-500.0,0.00049315,120]
[357075163,1743692603669,-500.0,0.00049315,120]
[357075164,1743692603715,-500.0,0.00049315,120]
[357075165,1743692603762,-502.57574149,0.00049315,120]
[357075166,1743692603808,-500.0,0.00049315,120]
[357075167,1743692603854,-500.0,0.00049315,120]
[357075168,1743692603902,-500.0,0.00049315,120]
[357075169,1743692603947,-500.0,0.00049315,120]
[357075170,1743692603996,-500.0,0.00049315,120]
[357075171,1743692604044,-500.0,0.00049315,120]
[357075172,1743692604092,-500.0,0.00049315,120]
[357075173,1743692604137,-501.95871009,0.00049315,120]
[357075174,1743692604181,-500.0,0.00049315,120]
[357075175,1743692604226,-500.0,0.00049315,120]
[357075176,1743692604270,-503.72969046,0.00049315,120]
[357075177,1743692604315,-500.0,0.00049315,120]
[357075178,1743692604359,-500.0,0.00049315,120]
[357075179,1743692604407,-500.0,0.00049315,120]
[357075180,1743692604449,-219.18000787,0.00049315,120]
[357075181,1743692604492,-500.0,0.00049315,120]
[357075182,1743692604536,-500.0,0.00049315,120]
[357075183,1743692604578,-503.32400733,0.00049315,120]
[357075184,1743692604622,-500.0,0.00049315,120]
[357075185,1743692604665,-500.0,0.00049315,120]
[357075186,1743692604712,-500.0,0.00049315,120]
[357075187,1743692604757,-500.0,0.00049315,120]
[357075188,1743692604801,-533.70729755,0.00049315,120]
[357075189,1743692604844,-500.0,0.00049315,120]
[357075190,1743692604886,-500.0,0.00049315,120]
[357075191,1743692604928,-500.0,0.00049315,120]
[357075192,1743692604973,-516.4682246,0.00049315,120]
[357075193,1743692605024,-500.0,0.00049315,120]
[357075194,1743692605073,-500.0,0.00049315,120]
[357075195,1743692605122,-502.12350947,0.00049315,120]
[357075196,1743692605173,-500.0,0.00049315,120]
[357075197,1743692605227,-500.0,0.00049315,120]
[357075198,1743692605289,-501.79550275,0.00049315,120]
[357075199,1743692605344,-360.00964016,0.00049315,120]
[357075200,1743692605393,-500.0,0.00049315,120]
[357075201,1743692605440,-623.66468602,0.00049315,120]
[357075202,1743692605487,-500.0,0.00049315,120]
[357075203,1743692605534,-500.0,0.00049315,120]
[357075204,1743692605579,-534.91913416,0.00049315,120]
[357075205,1743692605627,-500.0,0.00049315,120]
[357075206,1743692605671,-500.0,0.00049315,120]
[357075207,1743692605716,-500.0,0.00049315,120]
[357075208,1743692605762,-503.51478098,0.00049315,120]
[357075209,1743692605807,-500.0,0.00049315,120]
[357075210,1743692605854,-2515.07,0.00049315,120]
[357075211,1743692605900,-500.0,0.00049315,120]
[357075212,1743692605947,-500.0,0.00049315,120]
[357075213,1743692605994,-500.0,0.00049315,120]
[357075214,1743692606042,-500.0,0.00049315,120]
[357075215,1743692606087,-528.8410141,0.00049315,120]
[357075216,1743692606133,-500.0,0.00049315,120]
[357075217,1743692606178,-503.26053482,0.00049315,120]
[357075218,1743692606223,-510.42375204,0.00049315,120]
[357075219,1743692606270,-500.0,0.00049315,120]
[357075220,1743692606316,-507.20110986,0.00049315,120]
[357075221,1743692606360,-500.0,0.00049315,120]
[357075222,1743692606407,-500.0,0.00049315,120]
[357075223,1743692606652,-499.36760592,0.00049315,30]
[357075224,1743692606699,-500.0,0.00049315,120]
[357075225,1743692606747,-500.0,0.00049315,120]
[357075226,1743692606794,-3304.66,0.00049315,120]
[357075227,1743692606842,-500.0,0.00049315,120]
[357075228,1743692606891,-500.0,0.00049315,120]
[357075229,1743692606937,-500.0,0.00049315,120]
[357075230,1743692606983,-504.70915606,0.00049315,120]
[357075231,1743692607029,-500.0,0.00049315,120]
[357075232,1743692607074,-500.0,0.00049315,120]
[357075233,1743692607120,-500.0,0.00049315,120]
[357075234,1743692607165,-500.0,0.00049315,120]
[357075235,1743692607216,-500.0,0.00049315,120]
[357075236,1743692607260,-500.0,0.00049315,120]
[357075237,1743692607307,-500.0,0.00049315,120]
[357075238,1743692607353,-500.0,0.00049315,120]
[357075239,1743692607399,-523.94739834,0.00049315,120]
[357075240,1743692607446,-500.0,0.00049315,120]
[357075241,1743692607494,-500.0,0.00049315,120]
[357075242,1743692607539,-500.0,0.00049315,120]
[357075243,1743692607584,-500.0,0.00049315,120]
[357075244,1743692607632,-500.0,0.00049315,120]
[357075245,1743692607681,-604.77692966,0.00049315,120]
[357075246,1743692607731,-500.0,0.00049315,120]
[357075247,1743692607778,-500.0,0.00049315,120]
[357075248,1743692607824,-500.0,0.00049315,120]
[357075249,1743692607872,-500.0,0.00049315,120]
[357075250,1743692607923,-500.0,0.00049315,120]
[357075251,1743692607973,-500.0,0.00049315,120]
[357075252,1743692608020,-500.0,0.00049315,120]
[357075253,1743692608069,-500.0,0.00049315,120]
[357075254,1743692608117,-503.71013569,0.00049315,120]
[357075255,1743692608165,-500.0,0.00049315,120]
[357075256,1743692608218,-426.56851074,0.00049315,120]
[357075257,1743692608270,-2262.66,0.00049315,120]
[357075258,1743692608323,-500.0,0.00049315,120]
[357075259,1743692608368,-500.0,0.00049315,120]
[357075260,1743692608417,-500.0,0.00049315,120]
[357075261,1743692608466,-500.0,0.00049315,120]
[357075262,1743692608515,-500.0,0.00049315,120]
[357075263,1743692608564,-500.0,0.00049315,120]
[357075264,1743692608615,-500.81304053,0.00049315,120]
[357075265,1743692608665,-500.0,0.00049315,120]
[357075266,1743692608713,-500.0,0.00049315,120]
[357075267,1743692608766,-500.0,0.00049315,120]
[357075268,1743692608814,-501.69366211,0.00049315,120]
[357075269,1743692608862,-500.0,0.00049315,120]
[357075270,1743692608907,-500.0,0.00049315,120]
[357075271,1743692608955,-502.12050389,0.00049315,120]
[357075272,1743692609002,-500.0,0.00049315,120]
[357075273,1743692609051,-500.0,0.00049315,120]
[357075274,1743692609098,-500.0,0.00049315,120]
[357075275,1743692609144,-2546.13,0.00049315,120]
[357075276,1743692609194,-500.0,0.00049315,120]
[357075277,1743692609243,-500.0,0.00049315,120]
[357075278,1743692609291,-500.0,0.00049315,120]
[357075279,1743692609336,-500.0,0.00049315,120]
[357075280,1743692609383,-500.0,0.00049315,120]
[357075281,1743692609430,-503.9473412,0.00049315,120]
[357075282,1743692609480,-512.06442005,0.00049315,120]
[357075283,1743692609530,-500.0,0.00049315,120]
[357075284,1743692609578,-500.0,0.00049315,120]
[357075285,1743692609628,-937.33,0.00049315,120]
[357075286,1743692609689,-500.0,0.00049315,120]
[357075287,1743692609746,-500.0,0.00049315,120]
[357075288,1743692609794,-512.05,0.00049315,120]
[357075289,1743692609842,-510.1178126,0.00049315,120]
[357075290,1743692609890,-500.0,0.00049315,120]
[357075291,1743692609935,-666.57,0.00049315,120]
[357075292,1743692609982,-500.0,0.00049315,120]
[357075293,1743692610027,-502.69466676,0.00049315,120]
[357075294,1743692610074,-500.0,0.00049315,120]
[357075295,1743692610121,-580.61580781,0.00049315,120]
[357075296,1743692610166,-500.0,0.00049315,120]
[357075297,1743692610213,-500.0,0.00049315,120]
[357075298,1743692610259,-500.0,0.00049315,120]
[357075299,1743692610302,-500.0,0.00049315,120]
[357075300,1743692610348,-500.0,0.00049315,120]
[357075301,1743692610391,-2639.66,0.00049315,120]
[357075302,1743692610437,-613.67293915,0.00049315,120]
[357075303,1743692610480,-500.0,0.00049315,120]
[357075304,1743692610525,-500.0,0.00049315,120]
[357075305,1743692610571,-500.0,0.00049315,120]
[357075306,1743692610616,-500.0,0.00049315,120]
[357075307,1743692610662,-500.0,0.00049315,120]
[357075308,1743692610708,-2949.52,0.00049315,120]
[357075309,1743692610754,-500.0,0.00049315,120]
[357075310,1743692610800,-500.0,0.00049315,120]
[357075311,1743692610845,-500.0,0.00049315,120]
[357075312,1743692610888,-507.58536542,0.00049315,120]
[357075313,1743692610934,-500.0,0.00049315,120]
[357075314,1743692611175,-500.0,0.00049315,120]
[357075315,1743692611218,-500.0,0.00049315,120]
[357075316,1743692611269,-500.0,0.00049315,120]
[357075317,1743692611311,-1400.4,0.00049315,120]
[357075318,1743692611355,-500.0,0.00049315,120]
[357075319,1743692611396,-504.381144,0.00049315,120]
[357075320,1743692611437,-500.0,0.00049315,120]
[357075321,1743692611479,-519.55526743,0.00049315,120]
[357075322,1743692611523,-636.52291094,0.00049315,120]
[357075323,1743692611566,-500.0,0.00049315,120]
[357075324,1743692611610,-528.1668519,0.00049315,120]
[357075325,1743692611655,-156.26023846,0.00049315,120]
[357075326,1743692611698,-500.0,0.00049315,120]
[357075327,1743692611741,-510.3080225,0.00049315,120]
[357075328,1743692611784,-1000.0,0.00049315,120]
[357075329,1743692611829,-500.0,0.00049315,120]
[357075330,1743692611873,-1157.71,0.00049315,30]
[357075331,1743692611919,-500.0,0.00049315,120]
[357075332,1743692611962,-500.0,0.00049315,120]
[357075333,1743692612008,-500.0,0.00049315,120]
[357075334,1743692612049,-500.0,0.00049315,120]
[357075335,1743692612093,-500.0,0.00049315,120]
[357075336,1743692612136,-500.0,0.00049315,120]
[357075337,1743692612179,-502.56525941,0.00049315,120]
[357075338,1743692612218,-500.0,0.00049315,120]
[357075339,1743692612261,-500.0,0.00049315,120]
[357075340,1743692612302,-500.0,0.00049315,120]
[357075341,1743692612342,-500.0,0.00049315,120]
[357075342,1743692612384,-500.0,0.00049315,120]
[357075343,1743692612426,-500.0,0.00049315,120]
[357075344,1743692612467,-534.10794908,0.00049315,120]
[357075345,1743692612508,-504.21328676,0.00049315,120]
[357075346,1743692612549,-500.0,0.00049315,120]
[357075347,1743692612588,-500.0,0.00049315,120]
[357075348,1743692612636,-500.0,0.00049315,120]
[357075349,1743692612679,-500.0,0.00049315,120]
[357075350,1743692612721,-2465.07,0.00049315,120]
[357075351,1743692612762,-515.96345265,0.00049315,120]
[357075352,1743692612803,-507.7932141,0.00049315,120]
[357075353,1743692612842,-500.0,0.00049315,120]
[357075354,1743692612883,-2536.68,0.00049315,120]
[357075355,1743692612922,-500.0,0.00049315,120]
[357075356,1743692612961,-500.0,0.00049315,120]
[357075357,1743692613004,-290.27847632,0.00049315,120]
[357075358,1743692613047,-500.0,0.00049315,120]
[357075359,1743692613090,-500.0,0.00049315,120]
[357075360,1743692613133,-500.0,0.00049315,120]
[357075361,1743692613175,-500.0,0.00049315,120]
[357075362,1743692613215,-500.0,0.00049315,120]
[357075363,1743692613256,-500.0,0.00049315,120]
[357075364,1743692613298,-500.0,0.00049315,120]
[357075365,1743692613339,-500.0,0.00049315,120]
[357075366,1743692613383,-500.0,0.00049315,120]
[357075367,1743692613425,-509.1800415,0.00049315,120]
[357075368,1743692613469,-500.0,0.00049315,120]
[357075369,1743692613511,-523.96512925,0.00049315,120]
[357075370,1743692613554,-1614.37,0.00049315,120]
[357075371,1743692613597,-500.0,0.00049315,120]
[357075372,1743692613646,-500.0,0.00049315,120]
[357075373,1743692613691,-598.27483061,0.00049315,120]
[357075374,1743692613733,-2406.67,0.00049315,120]
[357075375,1743692613778,-500.0,0.00049315,120]
[357075376,1743692613821,-500.0,0.00049315,120]
[357075377,1743692613865,-2530.16,0.00049315,120]
[357075378,1743692613907,-500.0,0.00049315,120]
[357075379,1743692613949,-500.0,0.00049315,120]
[357075380,1743692613993,-500.0,0.00049315,120]
[357075381,1743692614036,-500.0,0.00049315,120]
[357075382,1743692614080,-3193.62,0.00049315,120]
[357075383,1743692614126,-500.0,0.00049315,120]
[357075384,1743692614170,-514.06455943,0.00049315,120]
[357075385,1743692614213,-500.0,0.00049315,120]
[357075386,1743692614259,-500.0,0.00049315,120]
[357075387,1743692614305,-500.0,0.00049315,120]
[357075388,1743692614352,-500.0,0.00049315,120]
[357075389,1743692614401,-500.0,0.00049315,120]
[357075390,1743692614447,-3486.67,0.00049315,120]
[357075391,1743692614492,-2824.78,0.00049315,120]
[357075392,1743692614533,-711.98,0.00049315,120]
[357075393,1743692614576,-500.0,0.00049315,120]
[357075394,1743692614619,-500.0,0.00049315,120]
[357075395,1743692614662,-500.0,0.00049315,120]
[357075396,1743692614704,-522.6758149,0.00049315,120]
[357075397,1743692614747,-500.0,0.00049315,120]
[357075398,1743692614789,-500.0,0.00049315,120]
[357075399,1743692614831,-416.46309588,0.00049315,120]
[357075400,1743692614872,-500.0,0.00049315,120]
[357075401,1743692615046,-508.79136963,0.00049315,120]
[357075402,1743692615089,-500.0,0.00049315,120]
[357075403,1743692615132,-500.0,0.00049315,120]
[357075404,1743692615176,-500.0,0.00049315,120]
[357075405,1743692615219,-506.47488495,0.00049315,120]
[357075406,1743692615262,-500.0,0.00049315,120]
[357075407,1743692615306,-599.47084276,0.00049315,90]
[357075408,1743692615349,-2511.44,0.00049315,120]
[357075409,1743692615394,-500.0,0.00049315,120]
[357075410,1743692615439,-500.0,0.00049315,120]
[357075411,1743692615485,-500.0,0.00049315,120]
[357075412,1743692615530,-500.0,0.00049315,30]
[357075413,1743692615574,-3042.94,0.00049315,120]
[357075414,1743692615619,-2546.97,0.00049315,120]
[357075415,1743692615666,-500.0,0.00049315,120]
[357075416,1743692615714,-500.0,0.00049315,120]
[357075417,1743692615763,-500.0,0.00049315,120]
[357075418,1743692615808,-500.0,0.00049315,120]
[357075419,1743692615853,-500.0,0.00049315,120]
[357075420,1743692615896,-500.0,0.00049315,120]
[357075421,1743692615938,-500.0,0.00049315,120]
[357075422,1743692615983,-500.0,0.00049315,120]
[357075423,1743692616025,-220.95577067,0.00049315,120]
[357075424,1743692616069,-500.0,0.00049315,120]
[357075425,1743692616110,-500.0,0.00049315,120]
[357075426,1743692616153,-500.0,0.00049315,120]
[357075427,1743692616194,-515.10194089,0.00049315,120]
[357075428,1743692616236,-500.0,0.00049315,120]
[357075429,1743692616279,-500.0,0.00049315,120]
[357075430,1743692616322,-500.0,0.00049315,120]
[357075431,1743692616364,-424.18619319,0.00049315,120]
[357075432,1743692616405,-500.0,0.00049315,120]
[357075433,1743692616447,-500.0,0.00049315,120]
[357075434,1743692616487,-2793.68,0.00049315,120]
[357075435,1743692616530,-539.64979954,0.00049315,120]
[357075436,1743692616572,-544.09360869,0.00049315,120]
[357075437,1743692616618,-500.0,0.00049315,120]
[357075438,1743692616661,-500.0,0.00049315,120]
[357075439,1743692616705,-517.13841482,0.00049315,120]
[357075440,1743692616749,-500.0,0.00049315,120]
[357075441,1743692616793,-500.0,0.00049315,120]
[357075442,1743692616838,-364.18600269,0.00049315,120]
[357075443,1743692616882,-500.0,0.00049315,120]
[357075444,1743692616930,-518.70695565,0.00049315,120]
[357075445,1743692616974,-500.0,0.00049315,120]
[357075446,1743692617018,-500.0,0.00049315,120]
[357075447,1743692617060,-511.49323043,0.00049315,120]
[357075448,1743692617102,-500.0,0.00049315,120]
[357075449,1743692617143,-500.0,0.00049315,120]
[357075450,1743692617184,-500.0,0.00049315,120]
[357075451,1743692617227,-500.0,0.00049315,120]
[357075452,1743692617270,-500.0,0.00049315,120]
[357075453,1743692617313,-3225.87,0.00049315,120]
[357075454,1743692617353,-189.46,0.00049315,120]
[357075455,1743692617395,-500.0,0.00049315,120]
[357075456,1743692617439,-500.0,0.00049315,120]
[357075457,1743692617484,-585.63894316,0.00049315,120]
[357075458,1743692617526,-561.58,0.00049315,120]
[357075459,1743692617568,-531.02755953,0.00049315,120]
[357075460,1743692617613,-3309.73,0.00049315,120]
[357075461,1743692617656,-500.0,0.00049315,120]
[357075462,1743692617701,-526.96329894,0.00049315,120]
[357075463,1743692617745,-500.0,0.00049315,120]
[357075464,1743692617791,-1365.8,0.00049315,30]
[357075465,1743692617833,-500.0,0.00049315,120]
[357075466,1743692617876,-500.0,0.00049315,120]
[357075467,1743692617917,-419.31096171,0.00049315,120]
[357075468,1743692617962,-3036.55,0.00049315,120]
[357075469,1743692618007,-500.0,0.00049315,120]
[357075470,1743692618051,-2595.67,0.00049315,120]
[357075471,1743692618096,-500.0,0.00049315,120]
[357075472,1743692618139,-1461.06,0.00049315,120]
[357075473,1743692618185,-500.0,0.00049315,120]
[357075474,1743692618231,-533.47678937,0.00049315,120]
[357075475,1743692618277,-903.9,0.00049315,120]
[357075476,1743692618323,-597.57029863,0.00049315,120]
[357075477,1743692618366,-3168.58,0.00049315,120]
[357075478,1743692618412,-500.0,0.00049315,120]
[357075479,1743692618454,-500.0,0.00049315,120]
[357075480,1743692618500,-500.0,0.00049315,120]
[357075481,1743692618543,-500.0,0.00049315,120]
[357075482,1743692618588,-500.0,0.00049315,120]
[357075483,1743692618632,-2366.98,0.00049315,120]
[357075484,1743692618677,-500.0,0.00049315,120]
[357075485,1743692618721,-699.06,0.00049315,120]
[357075486,1743692618891,-500.0,0.00049315,120]
[357075487,1743692618935,-500.0,0.00049315,120]
[357075488,1743692618980,-500.0,0.00049315,120]
[357075489,1743692619026,-500.0,0.00049315,120]
[357075490,1743692619072,-500.0,0.00049315,120]
[357075491,1743692619117,-2551.84,0.00049315,120]
[357075492,1743692619162,-500.0,0.00049315,120]
[357075493,1743692619208,-500.0,0.00049315,120]
[357075494,1743692619253,-500.0,0.00049315,120]
[357075495,1743692619298,-522.61820766,0.00049315,120]
[357075496,1743692619344,-509.71069052,0.00049315,120]
[357075497,1743692619391,-3427.7,0.00049315,120]
[357075498,1743692619439,-193.40067225,0.00049315,120]
[357075499,1743692619489,-500.0,0.00049315,120]
[357075500,1743692619535,-500.0,0.00049315,120]
[357075501,1743692619581,-2545.19,0.00049315,120]
[357075502,1743692619626,-2360.98,0.00049315,120]
[357075503,1743692619672,-500.0,0.00049315,120]
[357075504,1743692619716,-2157.55,0.00049315,120]
[357075505,1743692619758,-500.0,0.00049315,120]
[357075506,1743692619800,-500.0,0.00049315,120]
[357075507,1743692619843,-1138.26,0.00049315,120]
[357075508,1743692619884,-500.0,0.00049315,120]
[357075509,1743692619925,-500.0,0.00049315,120]
[357075510,1743692619966,-500.0,0.00049315,120]
[357075511,1743692620008,-500.0,0.00049315,120]
[357075512,1743692620050,-500.0,0.00049315,120]
[357075513,1743692620093,-500.0,0.00049315,120]
[357075514,1743692620134,-500.0,0.00049315,120]
[357075515,1743692620177,-500.0,0.00049315,120]
[357075516,1743692620217,-500.0,0.00049315,120]
[357075517,1743692620260,-500.0,0.00049315,120]
[357075518,1743692620300,-500.0,0.00049315,120]
[357075519,1743692620340,-500.0,0.00049315,120]
[357075520,1743692620381,-2345.56,0.00049315,120]
[357075521,1743692620422,-559.12703966,0.00049315,120]
[357075522,1743692620463,-500.0,0.00049315,120]
[357075523,1743692620506,-500.0,0.00049315,120]
[357075524,1743692620548,-500.0,0.00049315,120]
[357075525,1743692620589,-500.0,0.00049315,120]
[357075526,1743692620635,-500.0,0.00049315,120]
[357075527,1743692620682,-621.02966862,0.00049315,120]
[357075528,1743692620728,-677.86,0.00049315,120]
[357075529,1743692620773,-2876.09,0.00049315,120]
[357075530,1743692620819,-500.0,0.00049315,120]
[357075531,1743692620861,-500.0,0.00049315,120]
[357075532,1743692620905,-621.85086127,0.00049315,120]
[357075533,1743692620948,-500.0,0.00049315,120]
[357075534,1743692620991,-500.0,0.00049315,120]
[357075535,1743692621032,-500.0,0.00049315,120]
[357075536,1743692621074,-500.0,0.00049315,120]
[357075537,1743692621115,-500.0,0.00049315,120]
[357075538,1743692621156,-500.0,0.00049315,120]
[357075539,1743692621197,-500.0,0.00049315,120]
[357075540,1743692621238,-500.0,0.00049315,120]
[357075541,1743692621279,-404.432236,0.00049315,120]
[357075542,1743692621319,-500.0,0.00049315,120]
[357075543,1743692621360,-518.54397984,0.00049315,120]
[357075544,1743692621399,-624.21,0.00049315,120]
[357075545,1743692621438,-500.0,0.00049315,120]
[357075546,1743692621477,-547.2864643,0.00049315,120]
[357075547,1743692621521,-500.0,0.00049315,60]
[357075548,1743692621562,-500.0,0.00049315,120]
[357075549,1743692621603,-500.0,0.00049315,120]
[357075550,1743692621647,-500.0,0.00049315,120]
[357075551,1743692621691,-500.0,0.00049315,120]
[357075552,1743692621732,-500.0,0.00049315,120]
[357075553,1743692621776,-500.0,0.00049315,120]
[357075554,1743692621819,-326.82455773,0.00049315,120]
[357075555,1743692621862,-600.07832615,0.00049315,120]
[357075556,1743692621907,-2468.01,0.00049315,120]
[357075557,1743692621951,-585.72598181,0.00049315,120]
[357075558,1743692621993,-500.0,0.00049315,120]
[357075559,1743692622035,-500.0,0.00049315,120]
[357075560,1743692622077,-2420.85,0.00049315,120]
[357075561,1743692622120,-500.0,0.00049315,120]
[357075562,1743692622161,-500.0,0.00049315,120]
[357075563,1743692622203,-2398.8,0.00049315,120]
[357075564,1743692622244,-654.52,0.00049315,120]
[357075565,1743692622290,-2194.1,0.00049315,120]
[357075566,1743692622333,-500.0,0.00049315,120]
[357075567,1743692622505,-500.0,0.00049315,120]
[357075568,1743692622560,-504.60232033,0.00049315,120]
[357075569,1743692622610,-500.0,0.00049315,120]
[357075570,1743692622655,-500.0,0.00049315,120]
[357075571,1743692622700,-500.0,0.00049315,120]
[357075572,1743692622747,-500.0,0.00049315,100]
[357075573,1743692622797,-3237.94,0.00049315,120]
[357075574,1743692622847,-2316.04,0.00049315,120]
[357075575,1743692622897,-500.0,0.00049315,120]
[357075576,1743692622946,-526.24906951,0.00049315,120]
[357075577,1743692622998,-500.0,0.00049315,120]
[357075578,1743692623043,-500.0,0.00049315,120]
[357075579,1743692623090,-500.0,0.00049315,120]
[357075580,1743692623140,-500.0,0.00049315,120]
[357075581,1743692623186,-500.0,0.00049315,120]
[357075582,1743692623234,-500.0,0.00049315,120]
[357075583,1743692623281,-521.51613722,0.00049315,120]
[357075584,1743692623327,-500.0,0.00049315,120]
[357075585,1743692623373,-500.0,0.00049315,120]
[357075586,1743692623417,-2658.41,0.00049315,120]
[357075587,1743692623467,-500.0,0.00049315,120]
[357075588,1743692623513,-538.55389929,0.00049315,120]
[357075589,1743692623557,-952.95,0.00049315,120]
[357075590,1743692623609,-1015.91,0.00049315,120]
[357075591,1743692623655,-500.0,0.00049315,120]
[357075592,1743692623700,-500.0,0.00049315,120]
[357075593,1743692623745,-521.82835992,0.00049315,120]
[357075594,1743692623789,-220.03344334,0.00049315,120]
[357075595,1743692623835,-2898.35,0.00049315,120]
[357075596,1743692623881,-500.0,0.00049315,120]
[357075597,1743692623923,-500.0,0.00049315,120]
[357075598,1743692623967,-500.0,0.00049315,120]
[357075599,1743692624015,-500.0,0.00049315,120]
[357075600,1743692624062,-500.0,0.00049315,120]
[357075601,1743692624111,-535.37654276,0.00049315,120]
[357075602,1743692624157,-536.9837298,0.00049315,120]
[357075603,1743692624203,-500.0,0.00049315,120]
[357075604,1743692624248,-2878.83,0.00049315,120]